bitfinex/quotes_ETHUSD_20220311
["timestamp","ask_amount","ask_price","bid_price","bid_amount"]
[1647010821837,3.04842834,2605.1,2604.7,0.0224929]
[1647010822038,6.54842834,2605.1,2604.7,0.0224929]
[1647010822340,0.33349566,2604.9,2604.7,0.0224929]
[1647010822539,3.83349566,2604.9,2604.7,0.0224929]
[1647010822840,0.33349566,2604.9,2604.7,0.0224929]
[1647010823037,1.33349566,2604.9,2604.7,0.0224929]
[1647010823238,0.33349566,2604.9,2604.7,0.0224929]
[1647010823438,0.33349566,2604.9,2604.7,0.02674417]
[1647010824374,1.17287799,2604.9,2604.7,0.0224929]
[1647010824566,4.67287799,2604.9,2604.7,0.02674417]
[1647010824870,2.06450008,2604.9,2604.7,0.02674417]
[1647010825071,2.06450008,2604.9,2604.3,0.04424882]
[1647010825072,0.33349566,2604.6,2604.3,0.04424882]
[1647010825274,6.83349566,2604.5,2604.1,0.04059016]
[1647010825469,0.33349566,2604.3,2603.9,0.0517091]
[1647010825670,0.96007,2604.5,2603.9,0.0507491]
[1647010825671,0.33349566,2604.2,2603.9,0.0507491]
[1647010825871,1.17287799,2604.2,2603.9,0.0007491]
[1647010826067,3.5,2604.4,2603.9,0.0007491]
[1647010826068,0.33349566,2604.0,2603.9,0.0007491]
[1647010826669,0.96017,2604.2,2603.9,0.0007491]
[1647010826670,0.33349566,2604.1,2603.9,0.0007491]
[1647010826869,0.33349566,2604.1,2603.7,0.07094373]
[1647010827313,2.92033,2604.3,2603.7,0.07094373]
[1647010827314,0.33349566,2603.9,2603.7,0.07094373]
[1647010828326,0.00422883,2604.5,2603.7,0.15731548]
[1647010828520,0.00422883,2604.5,2603.8,0.19393037]
[1647010828718,0.00422883,2604.5,2603.9,0.8757806]
[1647010828921,0.00422883,2604.5,2604.0,0.06302859]
[1647010829420,0.0042291,2604.5,2604.1,0.00422979]
[1647010830220,0.0042291,2604.5,2604.3,1.09884701]
[1647010830423,1.84924969,2604.4,2604.3,1.09884701]
[1647010830623,1.84924969,2604.4,2604.3,1.39884701]
[1647010831085,1.84924969,2604.4,2604.3,1.59277738]
[1647010831270,1.84924969,2604.4,2604.3,1.61201438]
[1647010831469,1.84924969,2604.4,2604.3,2.07301438]
[1647010831674,0.06581916,2605.3,2604.4,3.5]
[1647010831875,9.2511,2605.8,2604.6,1.9188]
[1647010831876,0.05812541,2605.6,2604.6,1.9188]
[1647010832074,0.05812541,2605.6,2604.7,3.961]
[1647010832275,0.05812541,2605.6,2604.7,0.461]
[1647010832574,0.05812541,2605.6,2604.7,1.49193875]
[1647010832774,0.05812541,2605.6,2605.4,1.42303544]
[1647010832977,0.9199,2605.8,2605.4,1.42303544]
[1647010833377,0.0008,2606.1,2605.5,7.961]
[1647010833576,0.0008,2606.1,2605.5,4.461]
[1647010833776,0.0008,2606.1,2606.0,0.83155393]
[1647010833977,0.0008,2606.1,2605.5,2.37922]
[1647010834378,0.0008,2606.1,2605.5,1.937457]
[1647010834830,0.86900354,2606.0,2605.5,0.019237]
[1647010835031,0.06409216,2605.9,2605.5,0.019237]
[1647010835234,0.0008,2606.1,2605.5,0.019237]
[1647010835434,1.84924969,2605.8,2605.5,0.60646195]
[1647010835832,1.84924969,2605.8,2605.6,0.3]
[1647010836033,1.84924969,2605.8,2605.7,0.8481795]
[1647010836434,1.84924969,2605.8,2605.7,0.87911825]
[1647010836841,1.8533154,2605.8,2605.7,0.87911825]
[1647010837635,1.84924969,2605.8,2605.7,0.87911825]
[1647010840299,1.79924969,2605.8,2605.7,0.87911825]
[1647010840497,1.79924969,2605.8,2605.7,0.03093875]
[1647010840701,0.00358977,2605.9,2605.7,0.03093875]
[1647010840702,0.07386434,2605.9,2605.7,0.03093875]
[1647010840898,1.79924969,2605.8,2605.7,0.03093875]
[1647010847579,0.06475424,2606.1,2605.7,0.03093875]
[1647010847580,0.0008,2606.1,2605.7,0.03093875]
[1647010847776,0.0008,2606.1,2605.8,2.87717]
[1647010847975,0.0008,2606.1,2605.9,0.06273836]
[1647010848277,0.0008,2606.1,2605.8,3.47717]
[1647010848475,0.0008,2606.1,2605.8,3.48887175]
[1647010848676,0.0008,2606.1,2605.9,0.5753622]
[1647010848979,0.0008,2606.1,2605.9,0.95902]
[1647010848980,0.06489175,2606.1,2605.9,0.95902]
[1647010849177,0.06489175,2606.1,2605.8,1.57080175]
[1647010849377,0.06489175,2606.1,2605.8,0.01170175]
[1647010849678,0.06489175,2606.1,2605.1,0.5756969]
[1647010849679,0.01586825,2605.7,2605.1,0.5756969]
[1647010849927,0.88179721,2605.6,2605.1,0.5766569]
[1647010850132,1.04321858,2605.2,2605.1,0.5756969]
[1647010850729,1.04321858,2605.2,2605.0,1.91899]
[1647010850928,0.05604403,2605.1,2604.4,0.06872468]
[1647010851128,0.05604403,2605.1,2604.3,0.25]
[1647010851129,0.05604403,2605.1,2604.5,0.0025139]
[1647010851332,0.05604403,2605.1,2604.7,1.91926]
[1647010851531,0.05604403,2605.1,2604.5,0.0025139]
[1647010851929,0.05604403,2605.1,2604.4,0.5758272]
[1647010851930,0.05715331,2605.1,2604.4,0.5758272]
[1647010852128,1.01687331,2605.1,2604.5,0.95968]
[1647010852328,0.05942581,2604.9,2604.5,0.95968]
[1647010852531,0.05942581,2604.9,2604.6,1.91931]
[1647010852735,0.05942581,2604.9,2604.6,2.51931]
[1647010852932,0.0603637,2605.2,2604.6,2.51931]
[1647010853131,0.05029465,2605.5,2604.3,1.7917171]
[1647010853334,3.01232757,2605.2,2603.8,2.8955032]
[1647010853575,0.06865727,2604.9,2604.5,0.00423124]
[1647010853774,3.56865727,2604.9,2604.5,0.00423124]
[1647010853974,0.0621279,2604.8,2604.5,0.00423124]
[1647010854178,1.0220579,2604.8,2604.5,3.124e-05]
[1647010854382,1.0220579,2604.8,2603.8,0.0163632]
[1647010854383,0.83504551,2604.7,2603.8,0.0163632]
[1647010854582,3.06578087,2604.6,2603.8,0.0163632]
[1647010854783,5.0,2604.4,2603.7,0.0138423]
[1647010854980,0.06627112,2604.3,2603.7,0.0303573]
[1647010855182,0.07273599,2604.5,2603.7,0.0303573]
[1647010855384,0.96007,2604.2,2603.7,0.0303573]
[1647010855580,0.06744509,2603.9,2603.7,0.0303573]
[1647010856182,1.27864509,2603.9,2603.7,0.0303573]
[1647010856382,0.05729686,2603.8,2603.7,0.9904373]
[1647010856882,0.05729686,2603.8,2603.7,0.0303573]
[1647010857084,0.05729686,2603.8,2603.6,0.0186859]
[1647010857085,7.0,2603.7,2603.6,0.00413053]
[1647010857325,11.55033518,2603.7,2603.6,0.05896066]
[1647010857525,2.01063308,2603.7,2603.6,0.05896066]
[1647010857726,1.97102308,2603.7,2603.6,0.05896066]
[1647010857928,1.01063308,2603.7,2603.6,0.05896066]
[1647010858125,1.01063308,2603.7,2603.6,0.05893013]
[1647010858326,7.0,2603.6,2603.2,0.6194478]
[1647010858629,10.5,2603.6,2603.5,0.0133816]
[1647010858828,9.80465808,2603.6,2603.5,0.0133816]
[1647010859328,1.96042,2603.6,2603.5,0.0133816]
[1647010859526,1.97109308,2603.7,2603.5,0.0133816]
[1647010859527,0.05033518,2603.7,2603.5,0.0133816]
[1647010859929,7.0,2603.5,2603.1,1.0]
[1647010860326,7.0,2603.5,2603.1,1.86056]
[1647010860327,8.1159,2603.5,2603.1,1.86056]
[1647010860533,8.1159,2603.5,2603.1,0.96056]
[1647010860730,9.0763548,2603.5,2603.1,0.96056]
[1647010860932,9.0763548,2603.5,2602.8,2.00976639]
[1647010860933,7.0,2603.3,2602.8,2.00976639]
[1647010861166,3.5,2603.2,2602.8,2.00976639]
[1647010861369,3.5,2603.2,2602.8,2.32e-06]
[1647010861567,7.0,2603.1,2602.7,0.02287212]
[1647010861767,7.96078,2603.1,2602.7,0.02287212]
[1647010861968,4.4608062,2603.0,2602.6,0.88365212]
[1647010862172,9.96078,2603.1,2602.6,0.01116528]
[1647010862173,1.96078,2603.1,2602.6,0.01116528]
[1647010862371,0.0121753,2603.3,2602.6,0.01116528]
[1647010862372,1.0,2603.0,2602.6,0.01116528]
[1647010862572,3.5121753,2603.3,2602.6,0.01116528]
[1647010862772,1.0121753,2603.3,2602.6,0.01116528]
[1647010862972,1.0121753,2603.3,2602.6,2.89298528]
[1647010863174,0.9605937,2603.2,2602.7,0.96317079]
[1647010863372,0.96062,2603.1,2602.7,0.96317079]
[1647010863772,0.96062,2603.1,2602.7,1.26317079]
[1647010863970,0.96062,2603.1,2602.7,0.96071]
[1647010864270,0.96062,2603.1,2602.8,0.00246069]
[1647010864672,0.9605937,2603.2,2602.8,0.00246069]
[1647010864928,5.46055,2603.3,2602.8,1.92349069]
[1647010865128,4.46055,2603.3,2602.8,1.92349069]
[1647010865327,5.46055,2603.3,2602.8,1.92103]
[1647010865530,5.46055,2603.3,2602.9,0.0024606]
[1647010865732,1.96055,2603.3,2602.9,0.0024606]
[1647010866130,5.4211171,2603.3,2602.9,0.0024606]
[1647010866330,1.92136,2603.2,2602.8,1.92103]
[1647010866734,3.5,2603.1,2603.0,0.00418491]
[1647010867131,4.5,2603.1,2603.0,0.00418491]
[1647010867333,0.9607671,2603.1,2603.0,0.00418491]
[1647010867532,2.82274409,2603.4,2603.0,0.00418491]
[1647010867732,2.82274409,2603.4,2602.8,1.92103]
[1647010867935,0.0728405,2603.3,2602.9,0.00418496]
[1647010868871,0.06608151,2603.2,2602.8,1.92103]
[1647010869069,0.06608151,2603.2,2603.0,0.00418491]
[1647010869271,0.96064,2603.1,2603.0,0.96482491]
[1647010869469,0.96064,2603.1,2603.0,0.00418491]
[1647010869877,1.9605433,2603.3,2603.0,0.01198147]
[1647010870072,1.9605433,2603.3,2602.9,0.00103447]
[1647010870073,5.0,2603.2,2602.9,0.00103447]
[1647010870277,1.9208669,2603.6,2602.9,0.00103447]
[1647010870473,0.80252029,2603.9,2603.0,0.96053]
[1647010870672,1.05196576,2603.6,2603.0,0.96053]
[1647010871474,1.1541,2604.1,2603.0,0.96053]
[1647010871475,1.15582691,2604.1,2603.0,0.96053]
[1647010871674,3.5,2604.0,2603.0,0.96053]
[1647010871876,4.5,2604.0,2603.0,0.96053]
[1647010872073,1.0,2604.0,2603.0,0.96053]
[1647010872325,1.9206737,2603.9,2603.0,0.96053]
[1647010872527,13.79582691,2604.1,2603.0,0.96053]
[1647010872528,0.8207192,2604.0,2603.0,0.96053]
[1647010872727,1.15582705,2604.1,2603.2,0.96013]
[1647010873025,1.15582705,2604.1,2603.3,0.3]
[1647010873225,1.15582705,2604.1,2603.3,0.96019]
[1647010873632,1.1541,2604.1,2603.3,0.96019]
[1647010873825,2.30173875,2604.1,2603.5,0.96007]
[1647010874027,0.960185,2604.0,2603.5,0.96007]
[1647010874625,0.96541707,2604.0,2603.5,0.96007]
[1647010875432,1.92565707,2604.0,2603.5,0.96007]
[1647010876871,0.00523207,2604.0,2603.5,0.96007]
[1647010878170,1.92559817,2604.0,2603.5,0.96007]
[1647010878370,1.92559817,2604.0,2603.5,1.93829113]
[1647010878576,1.92559817,2604.0,2603.5,0.96007]
[1647010879272,0.9602333,2603.8,2603.5,0.96007]
[1647010879673,0.06764811,2603.7,2603.5,0.96007]
[1647010880125,0.05812928,2603.7,2603.5,0.96007]
[1647010880325,0.05812928,2603.7,2602.9,2.8858986]
[1647010880526,0.05812928,2603.7,2602.7,6.528e-05]
[1647010880527,3.06537433,2603.2,2602.7,6.528e-05]
[1647010880725,6.51280533,2603.1,2602.7,6.528e-05]
[1647010880925,5.0,2602.9,2602.5,0.0192796]
[1647010881130,0.06001269,2602.8,2602.5,0.0192796]
[1647010881324,0.05805718,2603.0,2602.5,0.0192796]
[1647010881526,2.8816365,2603.1,2602.5,0.0192796]
[1647010881726,0.07070895,2603.0,2602.5,0.0192796]
[1647010882129,1.03127805,2603.0,2602.5,0.9799096]
[1647010882328,0.06634912,2602.8,2602.5,0.9799096]
[1647010882528,0.06634912,2602.8,2602.5,0.8299096]
[1647010882529,1.02695912,2602.8,2602.5,0.8299096]
[1647010882828,0.06416491,2602.7,2602.5,0.8299096]
[1647010883328,0.06907377,2602.6,2602.5,0.0192796]
[1647010883581,0.06907377,2602.6,2602.5,0.02346324]
[1647010884170,0.05905377,2602.6,2602.5,0.02346324]
[1647010884571,0.05905377,2602.6,2602.5,0.0192796]
[1647010885575,0.9606824,2602.7,2602.5,0.0192796]
[1647010885777,1.01599187,2602.7,2602.5,0.0192796]
[1647010887178,1.01599187,2602.7,2602.5,0.02346324]
[1647010888224,1.01599187,2602.7,2602.5,0.0192796]
[1647010888425,1.01599187,2602.7,2602.5,0.02333773]
[1647010888626,0.9606824,2602.7,2602.5,0.02333773]
[1647010889225,0.00352594,2602.9,2602.5,0.02333773]
[1647010889425,0.00352594,2602.9,2602.5,0.0192796]
[1647010889626,0.00352594,2602.9,2602.5,0.02333773]
[1647010889827,2.594e-05,2602.9,2602.5,0.02333773]
[1647010890030,1.405e-05,2602.7,2602.5,0.02333773]
[1647010890232,1.405e-05,2602.7,2602.5,0.98380773]
[1647010890430,1.405e-05,2602.7,2602.5,1.94427773]
[1647010890633,1.405e-05,2602.7,2602.5,1.9402196]
[1647010890831,1.405e-05,2602.7,2602.5,2.24427773]
[1647010891369,1.405e-05,2602.7,2602.5,1.94427773]
[1647010891571,1.405e-05,2602.7,2602.6,0.06515807]
[1647010892768,1.405e-05,2602.7,2602.6,3.5]
[1647010893169,1.20985525,2603.7,2602.8,0.96013]
[1647010893370,1.20985525,2603.7,2602.9,4.46013]
[1647010893569,1.20985525,2603.7,2602.9,0.96013]
[1647010893570,0.00385525,2603.7,2602.9,0.96013]
[1647010894275,0.06049706,2603.9,2603.0,1.07370677]
[1647010894470,0.00385568,2603.7,2603.0,2.99400677]
[1647010894947,0.00385568,2603.7,2603.1,0.96018]
[1647010895147,0.00385568,2603.7,2603.1,1.26018]
[1647010895348,0.06049706,2603.9,2603.1,1.26018]
[1647010895747,2.9203486,2604.2,2603.1,1.26018]
[1647010895748,0.00386498,2603.7,2603.1,1.26018]
[1647010896148,0.00386498,2603.7,2603.3,0.96007]
[1647010896349,0.00386498,2603.7,2603.4,3.5]
[1647010896549,1.27540882,2604.4,2603.4,1.07303571]
[1647010896550,1.58020298,2604.3,2603.4,1.07303571]
[1647010896750,1.58020298,2604.3,2603.5,1.91996]
[1647010896953,0.00386505,2603.7,2603.5,1.91996]
[1647010897149,0.00386505,2603.7,2603.5,2.21996]
[1647010897348,0.00386505,2603.7,2603.6,2.87999]
[1647010897551,0.00386505,2603.7,2603.6,3.84]
[1647010897750,0.06953183,2604.6,2603.6,4.14]
[1647010897951,0.06953183,2604.6,2603.6,3.17999]
[1647010897952,1.58001829,2604.5,2603.6,3.17999]
[1647010898152,0.00386503,2603.8,2603.6,1.25998]
[1647010898576,0.00386503,2603.8,2603.6,3.17988]
[1647010898978,1.58001829,2604.2,2603.6,3.17988]
[1647010899376,0.00387629,2603.8,2603.6,3.17988]
[1647010899582,0.00387629,2603.8,2603.7,4.45997]
[1647010899778,0.00387629,2603.8,2603.7,4.75997]
[1647010900181,1.57998432,2604.5,2603.9,0.95977]
[1647010900481,0.06955375,2605.0,2604.0,5.71954]
[1647010900681,1.57981281,2604.9,2604.1,1.91951]
[1647010900884,0.69136782,2605.3,2604.3,6.0]
[1647010901085,0.01586825,2605.7,2604.4,6.961]
[1647010901086,0.07323709,2605.7,2604.4,6.961]
[1647010901283,0.07323709,2605.7,2604.6,1.91884]
[1647010901284,1.12159244,2605.3,2604.6,1.91884]
[1647010901484,1.12159244,2605.3,2604.6,0.95942]
[1647010901680,0.00157122,2604.9,2604.6,0.95942]
[1647010901880,0.00157122,2604.9,2604.2,0.00096]
[1647010901881,1.68511657,2604.5,2604.2,0.00096]
[1647010902085,1.68511657,2604.5,2603.9,0.25]
[1647010902086,3.56386653,2604.4,2604.0,0.00096]
[1647010902325,0.06102066,2604.3,2603.6,0.00778694]
[1647010902521,0.06102066,2604.3,2603.8,0.96017]
[1647010902920,0.0647366,2604.3,2603.8,0.96017]
[1647010903120,0.0647366,2604.3,2603.8,1.92011]
[1647010903723,0.0647366,2604.3,2603.9,3.17951]
[1647010903724,0.06102066,2604.3,2603.9,3.17951]
[1647010903924,1.68511657,2604.5,2603.9,3.17951]
[1647010904125,1.68511657,2604.5,2603.9,4.13933]
[1647010904126,0.00371607,2604.2,2603.9,4.13933]
[1647010904324,0.00371607,2604.2,2604.0,0.95991]
[1647010904527,0.00371607,2604.2,2604.1,0.00775486]
[1647010904927,0.06659554,2604.4,2604.1,0.00775486]
[1647010905327,0.00387901,2604.3,2604.1,0.00775486]
[1647010905528,0.00387901,2604.3,2604.1,0.96780486]
[1647010905727,0.00387901,2604.3,2604.1,1.26780486]
[1647010905931,0.00387901,2604.3,2604.1,0.96780486]
[1647010906173,0.06659554,2604.4,2604.1,1.26780486]
[1647010906574,0.00398763,2604.3,2604.1,1.26780486]
[1647010907379,0.06659554,2604.4,2604.1,1.26780486]
[1647010907774,0.00398763,2604.3,2604.1,1.26780486]
[1647010907977,0.06744453,2604.3,2604.1,1.26780486]
[1647010908573,0.0634569,2604.3,2604.1,1.26780486]
[1647010908774,0.0634569,2604.3,2604.1,0.00775486]
[1647010908980,0.06744453,2604.3,2604.1,0.00775486]
[1647010909827,0.0708331,2604.2,2603.7,0.9602]
[1647010910634,0.07107087,2604.1,2603.7,0.9602]
[1647010911233,0.07107087,2604.1,2603.6,0.00780652]
[1647010911433,0.00385983,2604.0,2603.6,0.00780652]
[1647010911632,0.05836363,2603.9,2603.6,0.00780652]
[1647010912640,0.06222358,2603.9,2603.6,0.00780652]
[1647010912837,0.96412665,2603.9,2603.6,0.00780652]
[1647010913037,0.05799287,2603.7,2603.6,0.00780652]
[1647010913877,1.00386868,2603.8,2603.6,0.00780652]
[1647010914274,0.00386868,2603.8,2603.6,0.00780652]
[1647010914475,0.93206829,2603.4,2603.2,0.25]
[1647010914676,0.96056,2603.3,2603.1,0.0077741]
[1647010915981,2.09239597,2603.3,2603.1,0.0077741]
[1647010916583,0.96056,2603.3,2603.1,0.0077741]
[1647010916781,3.5,2603.2,2603.1,0.0077741]
[1647010917182,0.96056,2603.3,2603.1,0.0077741]
[1647010917828,3.5,2603.2,2603.1,0.0077741]
[1647010918026,1.0,2603.2,2603.1,0.0077741]
[1647010918224,0.96056,2603.3,2603.1,0.0077741]
[1647010919928,3.5,2603.2,2602.8,0.00387348]
[1647010920138,4.4607544,2603.2,2602.8,0.00387348]
[1647010920335,0.96075,2603.1,2602.8,0.00387348]
[1647010920732,0.96075,2603.1,2602.5,0.0192796]
[1647010921171,0.96075,2603.1,2602.8,0.00386897]
[1647010921371,0.9606205,2603.0,2602.8,0.00386897]
[1647010921771,3.06389,2603.5,2602.8,0.00386897]
[1647010921974,1.1428,2603.5,2602.5,3.5192796]
[1647010922174,1.1428,2603.5,2602.8,0.0038689]
[1647010922979,2.10327,2603.5,2602.8,0.0038689]
[1647010923172,0.9604161,2603.3,2602.7,1.07815776]
[1647010923374,0.9604161,2603.3,2602.8,0.00386907]
[1647010923972,0.06084455,2603.1,2602.8,0.00386907]
[1647010924374,2.94258655,2603.1,2602.5,0.0192796]
[1647010924574,0.0611817,2603.0,2602.9,0.00795294]
[1647010925928,0.0599318,2603.0,2602.9,0.00795294]
[1647010929982,0.0599318,2603.0,2602.8,0.00356868]
[1647010930185,1.0205094,2603.0,2602.8,0.00356868]
[1647010930383,0.0627079,2602.9,2602.7,0.00789409]
[1647010930583,0.05809591,2603.3,2602.8,0.00356868]
[1647010931185,0.9604863,2603.2,2602.8,0.00356868]
[1647010931384,0.06864725,2603.1,2602.8,0.00356868]
[1647010931584,0.06864725,2603.1,2602.7,0.00789409]
[1647010931784,0.06864725,2603.1,2602.8,0.00360151]
[1647010932185,0.06932144,2603.4,2602.8,0.00360151]
[1647010932623,0.9604321,2603.3,2602.7,0.00789409]
[1647010932822,0.06224283,2603.1,2602.7,0.00789409]
[1647010933025,0.06224283,2603.1,2602.8,0.00360154]
[1647010933223,0.05737409,2603.4,2602.8,0.00360154]
[1647010933627,1.01776939,2603.4,2602.8,0.00360154]
[1647010933832,0.0583846,2603.3,2602.7,0.00789409]
[1647010934229,0.0583846,2603.3,2602.8,0.00360154]
[1647010934431,0.0583846,2603.3,2602.9,1.07959727]
[1647010934631,0.0583846,2603.3,2602.8,0.96400154]
[1647010935030,0.0583846,2603.3,2602.8,0.9604]
[1647010935230,0.0583846,2603.3,2602.7,0.3]
[1647010935431,0.0583846,2603.3,2602.8,0.00359643]
[1647010936088,0.05983661,2603.4,2602.8,0.00359643]
[1647010936288,0.06455084,2603.7,2602.9,0.96031]
[1647010936484,0.06455084,2603.7,2602.9,1.26031]
[1647010936686,0.06455084,2603.7,2603.0,3.5]
[1647010936687,0.00359514,2603.7,2603.0,3.5]
[1647010936887,0.00359514,2603.7,2602.9,0.6]
[1647010937085,0.00359514,2603.7,2603.0,0.06057936]
[1647010937385,0.00359514,2603.7,2603.1,0.9601]
[1647010937584,0.07057786,2603.9,2603.1,0.9601]
[1647010937884,0.07057786,2603.9,2603.1,1.2601]
[1647010937885,0.00359531,2603.7,2603.1,1.2601]
[1647010938684,0.07057786,2603.9,2603.1,1.2601]
[1647010939085,0.00359628,2603.7,2603.1,1.2601]
[1647010939486,0.02417414,2603.9,2603.2,0.06666221]
[1647010939685,0.9602489,2603.8,2603.1,0.3]
[1647010939931,0.9602489,2603.8,2603.1,0.30782242]
[1647010940129,0.03021743,2603.7,2603.1,0.00782242]
[1647010940527,0.96041,2603.6,2603.1,0.00782242]
[1647010940728,1.0106074,2603.5,2603.1,0.00782242]
[1647010941331,0.05258386,2603.6,2603.2,0.92201283]
[1647010941534,1.0129095,2603.9,2603.2,0.92201283]
[1647010941730,1.0129095,2603.9,2603.1,0.00782242]
[1647010942034,1.0129095,2603.9,2603.1,0.30782242]
[1647010942228,1.0129095,2603.9,2603.1,0.96805242]
[1647010942429,1.0129095,2603.9,2603.1,1.26805242]
[1647010942430,0.0526895,2603.9,2603.1,1.26805242]
[1647010942830,0.00418589,2603.8,2603.1,1.27223952]
[1647010943429,0.0526895,2603.9,2603.1,0.30782242]
[1647010943701,0.0526895,2603.9,2603.2,0.0800253]
[1647010943902,1.92484206,2603.8,2603.2,0.0800253]
[1647010944107,1.92484206,2603.8,2603.1,0.01200949]
[1647010944503,1.92484206,2603.8,2603.1,0.00418707]
[1647010944704,1.9206562,2603.8,2603.0,0.08370648]
[1647010944906,0.9602643,2603.7,2603.0,0.08370648]
[1647010945109,1.9205943,2603.7,2603.1,0.00418707]
[1647010945306,1.92484206,2603.8,2603.1,0.00418707]
[1647010945307,1.9208307,2603.6,2603.1,0.00418707]
[1647010945508,0.04977883,2603.5,2603.1,0.00418707]
[1647010945907,0.04977883,2603.5,2603.0,0.00769196]
[1647010946108,0.05917069,2603.4,2603.0,0.00769196]
[1647010946315,0.05917069,2603.4,2603.1,0.00418697]
[1647010946622,0.00917069,2603.4,2603.1,0.00418697]
[1647010947012,0.00917069,2603.4,2603.0,0.00769196]
[1647010947213,1.93028899,2603.4,2603.0,0.00769196]
[1647010947426,0.00917069,2603.4,2603.1,0.00410143]
[1647010947829,4.27452825,2603.8,2603.1,0.00410143]
[1647010948031,0.03250714,2603.6,2603.1,0.00410143]
[1647010948231,0.03250714,2603.6,2603.0,0.00769196]
[1647010948630,0.96038,2603.5,2603.1,0.00410156]
[1647010949431,0.96038,2603.5,2603.0,0.00769196]
[1647010949831,1.9207755,2603.5,2603.1,0.00410146]
[1647010950032,0.96041,2603.4,2603.1,0.00410146]
[1647010950434,0.9603955,2603.5,2603.1,0.00410146]
[1647010950634,0.9603955,2603.5,2603.0,0.00769196]
[1647010951090,0.9603955,2603.5,2603.1,0.00393989]
[1647010951479,1.9207455,2603.5,2603.1,0.00393989]
[1647010951679,1.0085512,2603.3,2603.1,0.00393989]
[1647010952075,0.04750545,2603.1,2603.0,0.00769196]
[1647010953179,0.9605428,2603.3,2603.0,0.00769196]
[1647010953377,1.9605428,2603.3,2603.0,0.00769196]
[1647010953778,0.9605428,2603.3,2603.0,0.00769196]
[1647010954678,0.9605428,2603.3,2603.0,0.01157825]
[1647010954930,1.00661689,2603.4,2603.0,0.01157825]
[1647010955534,1.00661689,2603.4,2603.0,0.0203675]
[1647010955729,0.9603848,2603.3,2603.1,0.00388625]
[1647010955933,4.4603848,2603.3,2603.1,0.00388625]
[1647010956734,4.4603848,2603.3,2603.0,0.0203675]
[1647010957038,1.9209427,2603.2,2603.1,0.00388625]
[1647010957437,7.00193165,2603.2,2603.1,0.00388625]
[1647010958036,5.4209427,2603.2,2603.0,0.0203675]
[1647010958239,1.9209427,2603.2,2603.0,0.02425217]
[1647010959380,1.9209427,2603.2,2603.0,0.02425221]
[1647010960186,1.9208748,2603.3,2603.0,0.02425221]
[1647010960187,0.9603848,2603.3,2603.0,0.02425221]
[1647010960389,0.9603848,2603.3,2603.0,0.0203675]
[1647010960787,0.9603848,2603.3,2603.0,0.02425221]
[1647010960986,2.8812148,2603.3,2603.0,0.02425221]
[1647010961187,0.9603864,2603.2,2603.0,0.02425221]
[1647010961589,0.9603864,2603.2,2603.0,0.0203675]
[1647010961787,0.9603864,2603.2,2603.0,0.02426784]
[1647010962196,0.9602808,2603.4,2603.0,0.02426784]
[1647010962431,0.96411912,2603.8,2603.0,0.02426784]
[1647010962631,1.58074854,2603.7,2603.0,0.02426784]
[1647010962830,1.58074854,2603.7,2603.0,0.0203675]
[1647010963030,1.58074854,2603.7,2603.1,0.0039003]
[1647010963233,5.42209954,2603.6,2603.1,0.0039003]
[1647010963433,2.54115854,2603.5,2603.1,0.0039003]
[1647010963633,4.8015454,2603.6,2603.1,0.01657584]
[1647010963634,1.58074854,2603.4,2603.1,0.01657584]
[1647010963832,1.92082,2603.6,2603.1,0.01657584]
[1647010964032,1.92082,2603.6,2603.1,0.01267554]
[1647010964033,1.58085787,2603.5,2603.1,0.01267554]
[1647010964233,2.54131787,2603.5,2603.1,0.01657589]
[1647010964434,0.9604402,2603.4,2603.1,0.01657589]
[1647010965235,0.9604402,2603.4,2603.1,0.01267554]
[1647010965236,1.58087624,2603.3,2603.1,0.01267554]
[1647010965436,1.58087624,2603.3,2603.1,0.01655609]
[1647010965437,2.54131624,2603.3,2603.1,0.01655609]
[1647010965635,0.96044,2603.3,2603.1,0.01655609]
[1647010966278,0.96044,2603.3,2603.1,0.01267554]
[1647010966679,0.96044,2603.3,2603.1,0.00388053]
[1647010966879,1.58091948,2603.2,2603.1,0.00388053]
[1647010967280,1.9208988,2603.3,2603.1,0.00388053]
[1647010967483,1.9208988,2603.3,2602.6,0.05777102]
[1647010967680,2.8812888,2603.3,2602.6,0.05777102]
[1647010967979,2.8812888,2603.3,2603.0,0.00388057]
[1647010968284,2.5412977,2603.2,2603.0,0.00388057]
[1647010968480,0.9603722,2603.2,2603.0,0.00388057]
[1647010968880,2.8812888,2603.3,2602.5,0.0202396]
[1647010969080,1.9209362,2603.2,2603.0,0.00389943]
[1647010969483,2.8813962,2603.2,2603.0,0.00389943]
[1647010969933,2.8813962,2603.2,2602.5,0.10246445]
[1647010970140,0.96044,2603.1,2602.5,0.0192796]
[1647010970333,0.96044,2603.1,2603.0,0.00389943]
[1647010971036,2.54135006,2603.1,2603.0,0.00389943]
[1647010971235,2.54135006,2603.1,2602.4,0.42460661]
[1647010971236,2.54135006,2603.1,2602.4,0.41338628]
[1647010971437,0.96044,2603.1,2602.9,0.00389947]
[1647010971835,1.92089,2603.1,2602.9,0.00389947]
[1647010972235,0.9604239,2603.0,2602.9,0.00389947]
[1647010972436,0.96046,2602.9,2602.4,0.41242628]
[1647010973679,0.960443,2602.8,2602.4,0.41242628]
[1647010973884,0.96051,2602.7,2602.4,0.41242628]
[1647010976284,0.96051,2602.7,2602.4,0.41663679]
[1647010977084,0.96051,2602.7,2602.4,0.41242628]
[1647010977532,0.96051,2602.7,2602.4,0.41663679]
[1647010978336,0.96051,2602.7,2602.4,0.41242628]
[1647010978737,0.96051,2602.7,2602.4,0.41663679]
[1647010978941,0.96051,2602.7,2602.4,0.33917168]
[1647010979337,0.96051,2602.7,2602.4,3.83917168]
[1647010979538,0.00420986,2602.8,2602.4,0.33917168]
[1647010979737,3.07169516,2603.1,2602.4,0.33496117]
[1647010979944,0.00606035,2602.7,2602.4,0.33917168]
[1647010980742,6.035e-05,2602.7,2602.4,4.13496117]
[1647010980943,6.035e-05,2602.7,2602.5,0.54626772]
[1647010981212,6.035e-05,2602.7,2602.6,0.07020326]
[1647010982202,6.035e-05,2602.7,2602.4,0.41728797]
[1647010982808,6.035e-05,2602.7,2602.4,0.33496117]
[1647010983009,0.96065165,2602.7,2602.4,0.33496117]
[1647010983610,0.04767473,2602.5,2602.4,0.33496117]
[1647010984211,1.9212774,2602.6,2602.4,0.33496117]
[1647010984411,1.9212774,2602.6,2602.5,0.00762828]
[1647010984613,0.05067247,2603.2,2602.5,0.00762828]
[1647010984841,0.00421416,2602.8,2602.5,0.00762828]
[1647010985639,1.58118455,2602.9,2602.5,0.00762828]
[1647010986043,0.00421429,2602.8,2602.5,0.00762828]
[1647010986441,1.58539884,2602.8,2602.5,0.00762828]
[1647010986844,1.58118455,2602.7,2602.5,0.00762828]
[1647010987047,2.9210268,2603.2,2602.4,0.31970461]